bitfinex/quotes_SOLUSD_20260120
["timestamp","ask_amount","ask_price","bid_price","bid_amount"]
[1768897837850,3.63589257,130.03,130.0,4.32632113]
[1768897840043,3.63589257,130.02,129.98,4.32632113]
[1768897840247,11.32729101,130.02,129.98,4.32632113]
[1768897840446,15.73699186,130.02,129.98,4.32632113]
[1768897841856,4.40970085,130.05,129.98,4.32632113]
[1768897842154,4.40970085,130.05,130.01,4.22632113]
[1768897842346,4.40970085,130.04,130.01,4.22632113]
[1768897842663,15.73546786,130.05,130.01,4.22632113]
[1768897843451,11.32590736,130.04,130.01,4.22632113]
[1768897843756,8.06839111,130.03,129.99,4.2563196]
[1768897844658,4.43249854,130.03,129.99,4.2563196]
[1768897845554,15.7584059,130.04,129.99,4.2563196]
[1768897845739,11.32550257,130.05,130.0,4.2563196]
[1768897846063,15.75800111,130.05,130.0,4.2563196]
[1768897846358,15.75800111,130.05,130.01,4.2563196]
[1768897847664,16.86,130.06,130.02,4.2563196]
[1768897847844,7.68790804,130.08,130.04,4.2563196]
[1768897848160,11.32380061,130.08,130.04,4.2563196]
[1768897848759,15.75629915,130.08,130.04,4.2563196]
[1768897850766,12.12040658,130.08,130.04,7.89221217]
[1768897851560,23.1,130.14,130.0,3.63589257]
[1768897851561,4.43249854,130.12,130.07,4.2563196]
[1768897851742,12.11771218,130.12,130.08,7.8002984]
[1768897851949,12.11771218,130.12,130.08,4.16440583]
[1768897852160,12.11771218,130.12,130.08,7.8002984]
[1768897852345,11.32073706,130.13,130.08,3.63589257]
[1768897852747,12.11734303,130.13,130.08,3.63589257]
[1768897853066,4.12257086,130.12,130.05,7.68924836]
[1768897853252,7.75846343,130.11,130.06,3.63589257]
[1768897853568,7.75846343,130.11,130.05,3.63589257]
[1768897853750,7.75846343,130.11,130.06,4.19084131]
[1768897854158,7.75846343,130.11,130.04,4.19084131]
[1768897854159,4.12257086,130.09,130.04,4.19084131]
[1768897854469,7.75846343,130.09,130.05,4.19084131]
[1768897854837,7.75844984,130.09,130.05,4.19084131]
[1768897855366,4.12257086,130.09,130.05,4.19084131]
[1768897858273,7.75844984,130.09,130.05,4.19084131]
[1768897858667,15.44548989,130.09,130.05,4.19084131]
[1768897858857,11.80961091,130.09,130.05,4.19084131]
[1768897859463,4.12257086,130.08,130.03,4.19084131]
[1768897859665,4.12257086,130.07,130.03,4.19084131]
[1768897859874,4.12257086,130.06,130.03,4.19084131]
[1768897860474,7.75844984,130.05,130.01,4.19084131]
[1768897860660,4.12257086,130.05,130.01,4.19084131]
[1768897860973,7.75844984,130.05,130.01,4.19084131]
[1768897861467,11.32623726,130.04,129.99,3.63587898]
[1768897861651,3.63587898,130.02,129.99,4.19084131]
[1768897862172,3.63587898,130.01,129.98,4.29084131]
[1768897862479,4.12257086,130.02,129.98,4.29084131]
[1768897862671,7.75844984,130.02,129.98,4.29084131]
[1768897863163,31.03778303,130.04,129.99,4.19084131]
[1768897863360,15.44880812,130.04,130.0,4.19084131]
[1768897864356,3.63587898,130.03,130.0,4.19084131]
[1768897864854,15.44880812,130.04,130.0,4.19084131]
[1768897865577,11.81292914,130.04,130.0,4.19084131]
[1768897865778,15.44880812,130.04,130.0,4.19084131]
[1768897866853,11.81292914,130.04,130.0,4.19084131]
[1768897867259,15.44880812,130.04,130.0,4.19084131]
[1768897867459,3.63587898,130.03,130.0,4.19084131]
[1768897867667,7.75844984,130.03,129.99,4.19084131]
[1768897868374,4.12257086,130.03,129.99,4.19084131]
[1768897868767,7.75844984,130.03,129.99,4.19084131]
[1768897869371,15.4493694,130.03,129.99,4.19084131]
[1768897870357,7.75844984,130.02,129.98,4.29084131]
[1768897870562,7.75844984,130.01,129.98,0.1]
[1768897871174,7.75844984,130.0,129.98,0.1]
[1768897871390,3.63587898,129.99,129.97,0.2]
[1768897871558,4.12257086,130.01,129.97,1e-08]
[1768897871881,7.75844984,129.98,129.95,0.1]
[1768897872262,4.12257086,129.99,129.95,4.29084131]
[1768897872561,15.45206758,129.98,129.95,4.29084131]
[1768897874063,3.63587898,129.97,129.95,4.29084131]
[1768897874280,3.63587898,129.96,129.93,4.19084131]
[1768897874586,11.33065926,129.96,129.93,4.19084131]
[1768897874882,16.86,129.99,129.95,4.19084131]
[1768897875057,11.81418295,130.02,129.97,4.19084131]
[1768897875258,11.32749107,130.02,129.98,4.19084131]
[1768897876183,15.45006193,130.02,129.98,4.19084131]
[1768897878395,7.69161209,130.02,129.98,4.19084131]
[1768897878565,15.45006193,130.02,129.98,4.19084131]
[1768897878766,7.69161209,130.02,129.98,4.19084131]
[1768897879083,11.32749107,130.02,129.98,4.19084131]
[1768897879289,11.32749107,130.02,129.98,4.16084131]
[1768897879468,7.69016832,130.04,129.99,3.63587898]
[1768897879662,7.69016832,130.04,130.0,3.63587898]
[1768897880186,7.69016832,130.04,129.99,3.63587898]
[1768897880359,15.44861816,130.04,129.99,3.63587898]
[1768897880562,7.75844984,130.02,129.96,3.63587898]
[1768897880765,7.75844984,130.01,129.96,3.63587898]
[1768897880966,3.63587898,130.0,129.95,3.63587898]
[1768897881377,3.63587898,130.0,129.96,4.19084131]
[1768897881794,11.32834157,130.0,129.96,4.19084131]
[1768897883085,15.45039789,130.01,129.96,4.16084131]
[1768897883294,15.45233003,130.02,129.97,3.63587898]
[1768897883493,11.81645105,130.02,129.95,7.69511427]
[1768897883662,15.45233003,130.02,129.97,3.63587898]
[1768897884470,11.81645105,130.02,129.97,3.63587898]
[1768897884670,11.81645105,130.02,129.95,7.69511427]
[1768897884983,11.81645105,130.02,129.98,4.37514534]
[1768897885662,28.67593361,130.03,129.99,4.37514534]
[1768897885876,109.79013761,130.04,130.01,4.37514534]
[1768897886792,7.7610514,130.03,129.99,4.37514534]
[1768897886981,13.06069388,130.03,129.99,4.37514534]
[1768897887289,4.12517242,130.03,129.99,4.37514534]
[1768897887479,13.06069388,130.03,129.99,4.37514534]
[1768897887669,7.69171602,130.01,129.97,4.37514534]
[1768897888697,20.7524099,130.01,129.97,4.37514534]
[1768897889392,13.06069388,130.0,129.96,4.37514534]
[1768897889596,4.12517242,129.99,129.95,4.37514534]
[1768897889901,20.75389213,129.99,129.95,4.37514534]
[1768897890095,13.06069388,130.01,129.96,4.37514534]
[1768897890315,4.12517242,130.01,129.97,4.37514534]
[1768897890490,49.149309,130.02,129.97,4.37514534]
[1768897890695,7.69189766,130.01,129.97,4.37514534]
[1768897891599,37.61184461,130.02,129.97,4.37514534]
[1768897891803,37.61184461,130.02,129.98,4.37514534]
[1768897892178,24.55115073,130.02,129.98,4.37514534]
[1768897892794,37.61184461,130.02,129.98,4.37514534]
[1768897896081,28.67632315,130.02,129.98,4.37514534]
[1768897896403,24.55115073,130.02,129.98,4.37514534]
[1768897896606,16.86,130.02,129.97,4.37514534]
[1768897896901,16.86,130.02,129.99,4.37514534]
[1768897897103,7.69080463,130.03,129.99,4.37514534]
[1768897897405,16.86,130.04,130.01,4.37514534]
[1768897897711,24.54900961,130.06,130.02,4.37514534]
[1768897897886,7.68837838,130.07,130.03,4.37514534]
[1768897898082,20.74907226,130.07,130.03,4.37514534]
[1768897898407,24.54782481,130.08,130.04,4.37514534]
[1768897899089,24.5476185,130.08,130.04,4.37514534]
[1768897900007,28.67279092,130.08,130.04,4.37514534]
[1768897900509,37.60831238,130.08,130.04,4.37514534]
[1768897900907,20.74831238,130.08,130.04,4.37514534]
[1768897901087,7.6876185,130.08,130.04,4.37514534]
[1768897902842,20.74793417,130.09,130.04,4.37514534]
[1768897903911,16.62276175,130.09,130.04,4.37514534]
[1768897904096,12.11151186,130.08,130.04,4.37514534]
[1768897904298,12.11072831,130.1,130.05,13.17823598]
[1768897904505,7.68684426,130.1,130.06,4.24271452]
[1768897904705,12.11072831,130.1,130.06,4.24271452]
[1768897905506,28.96991019,130.11,130.07,4.24271452]
[1768897905714,37.90543165,130.11,130.07,4.24271452]
[1768897906515,28.96991019,130.11,130.07,4.24271452]
[1768897906718,37.90543165,130.11,130.07,4.24271452]
[1768897907222,4.42388405,130.1,130.07,4.24271452]
[1768897908506,28.96991019,130.11,130.07,4.24271452]
[1768897911099,16.86,130.11,130.07,3.634639]
[1768897911323,21.28388405,130.13,130.09,4.24271452]
[1768897911509,28.96855799,130.13,130.09,4.21271452]
[1768897912724,32.58205935,130.15,130.1,3.634639]
[1768897912933,28.94742035,130.15,130.1,3.634639]
[1768897913525,28.94742035,130.15,130.11,4.47315041]
[1768897914027,32.58205935,130.15,130.11,4.47315041]
[1768897914211,4.41617283,130.12,130.05,4.47315041]
[1768897914405,4.41617283,130.12,130.08,4.47315041]
[1768897914625,3.634639,130.12,130.08,4.47315041]
[1768897914835,3.634639,130.12,130.06,4.47315041]
[1768897914836,4.41617283,130.1,130.06,4.47315041]
[1768897915911,4.41617283,130.1,130.06,8.10778941]
[1768897916327,5.34408856,130.14,130.09,8.10778941]
[1768897916328,13.39490039,130.14,130.09,8.10778941]
[1768897916531,12.10062635,130.14,130.1,4.47315041]
[1768897917713,15.73352143,130.14,130.1,4.47315041]
[1768897918922,32.57261565,130.15,130.1,3.63289508]
[1768897919126,32.57261565,130.15,130.11,4.47315041]
[1768897919734,8.04906791,130.12,130.08,4.47315041]
[1768897919926,3.63289508,130.11,130.08,4.47315041]
[1768897920710,8.04906791,130.12,130.08,4.47315041]
[1768897921437,4.41617283,130.12,130.08,4.47315041]
[1768897921626,12.10185581,130.12,130.08,4.47315041]
[1768897921825,15.73475089,130.12,130.08,4.47315041]
[1768897922121,16.84,130.15,130.1,4.47315041]
[1768897922323,16.84,130.15,130.12,4.47315041]
[1768897923540,4.41617283,130.1,130.04,4.47315041]
[1768897923836,8.04906791,130.08,130.04,4.47315041]
[1768897924537,4.41617283,130.09,130.04,4.47315041]
[1768897924725,8.04906791,130.09,130.04,4.47315041]
[1768897924916,4.41617283,130.09,130.04,4.47315041]
[1768897925118,8.04906791,130.09,130.05,4.47315041]
[1768897925519,7.68757687,130.08,130.05,4.47315041]
[1768897925720,15.73631586,130.09,130.05,4.47315041]
[1768897926620,12.10279421,130.1,130.06,4.47315041]
[1768897928038,15.73568929,130.1,130.06,4.47315041]
[1768897928234,11.31951646,130.1,130.06,4.47315041]
[1768897928442,23.6284079,130.13,130.08,4.47315041]
[1768897928634,40.4684079,130.13,130.09,4.47315041]
[1768897928832,7.68553554,130.12,130.09,4.44315041]
[1768897929040,21.25617283,130.13,130.09,4.44315041]
[1768897929716,20.47289508,130.13,130.09,4.44315041]
[1768897930021,24.52485387,130.13,130.09,4.44315041]
[1768897931316,4.41617283,130.12,130.08,4.47315041]
[1768897931517,8.04906791,130.12,130.08,4.47315041]
[1768897931742,8.04906791,130.12,130.08,4.44315041]
[1768897932542,24.88906791,130.13,130.08,4.44315041]
[1768897932738,24.88906791,130.13,130.03,19.22583654]
[1768897932943,32.57395578,130.13,130.07,3.63289508]
[1768897933320,32.57395578,130.13,130.08,3.63289508]
[1768897933728,4.41617283,130.12,130.06,4.47315041]
[1768897933928,4.41617283,130.12,130.08,4.47315041]
[1768897934144,32.57395578,130.13,130.08,4.47315041]
[1768897934439,32.57395578,130.13,130.01,93.54292749]
[1768897934440,7.68430554,130.14,130.11,4.47315041]
[1768897935331,7.68430554,130.14,130.12,4.47315041]
[1768897935533,7.68430554,130.14,130.12,4.44315041]
[1768897936246,7.68430554,130.14,130.1,3.63289508]
[1768897937147,7.68430554,130.14,130.09,3.63289508]
[1768897937530,7.68430554,130.14,130.1,4.47315041]
[1768897938842,12.10047837,130.14,130.1,4.47315041]
[1768897939053,21.02032649,130.14,130.1,4.47315041]
[1768897939247,7.68430554,130.14,130.1,4.47315041]
[1768897940845,7.68430554,130.14,130.11,4.47315041]
[1768897942632,7.68344218,130.15,130.11,4.47315041]
[1768897942953,21.01946313,130.15,130.11,4.47315041]
[1768897943855,40.22806858,130.15,130.11,4.47315041]
[1768897944841,13.39499258,130.14,130.07,4.1638521]
[1768897945051,13.39499258,130.14,130.09,4.1638521]
[1768897945052,4.47514446,130.13,130.09,4.1638521]
[1768897946458,13.39499258,130.14,130.09,4.1638521]
[1768897946755,7.68462306,130.13,130.09,4.1638521]
[1768897948653,7.68462306,130.13,130.04,80.72394063]
[1768897948654,121.30665689,130.17,130.12,4.1638521]
[1768897948861,121.30665689,130.17,130.13,4.1638521]
[1768897949039,7.68285187,130.16,130.13,4.1638521]
[1768897949244,4.47514446,130.15,130.12,4.1638521]
[1768897949863,26.88998155,130.16,130.12,4.1638521]
[1768897950039,31.36512601,130.16,130.12,4.1638521]
[1768897950842,7.68228213,130.17,130.13,4.1638521]
[1768897951855,7.68228213,130.17,130.13,13.08370022]
[1768897952077,7.88195244,130.18,130.14,4.1638521]
[1768897953176,12.3570969,130.18,130.14,4.1638521]
[1768897953372,21.27694502,130.18,130.14,4.1638521]
[1768897953676,12.3570969,130.18,130.14,4.1638521]
[1768897955363,40.48112384,130.18,130.14,4.1638521]
[1768897955563,13.39499258,130.17,130.13,4.1638521]
[1768897955781,4.47514446,130.17,130.13,4.1638521]
[1768897955986,13.39499258,130.17,130.13,4.1638521]
[1768897956189,8.91984812,130.17,130.13,4.1638521]
[1768897956557,31.56127572,130.18,130.13,4.1638521]
[1768897956777,8.91984812,130.17,130.13,4.1638521]
[1768897957661,13.39499258,130.15,130.11,4.1638521]
[1768897958680,4.47514446,130.15,130.11,4.1638521]
[1768897958876,13.39499258,130.15,130.11,4.1638521]
[1768897959256,13.39499258,130.13,130.07,4.1638521]
[1768897959468,21.08020622,130.12,130.08,4.1638521]
[1768897959660,13.39499258,130.11,130.07,4.1638521]
[1768897960275,4.47514446,130.1,130.05,4.1638521]
[1768897960587,8.91984812,130.07,130.04,4.1638521]
[1768897960965,3.63699744,130.07,130.04,4.1638521]
[1768897961367,8.1121419,130.07,130.02,4.1638521]
[1768897961567,7.68875903,130.06,130.02,4.1638521]
[1768897961885,3.63699744,130.04,129.97,4.1638521]
[1768897962082,3.63699744,130.04,129.99,4.1638521]
[1768897962590,26.91065661,130.06,129.97,4.1638521]
[1768897962591,3.63699744,130.01,129.97,4.1638521]
[1768897963081,3.63699744,129.98,129.96,0.1]
[1768897963283,4.32421991,129.99,129.96,0.1]
[1768897963474,7.6934913,129.98,129.96,0.1]
[1768897963680,11.33048874,129.98,129.93,4.31920196]
[1768897964879,16.63617897,129.98,129.93,4.31920196]
[1768897965486,8.94268767,129.96,129.92,4.41920196]
[1768897966184,13.26690758,129.97,129.92,4.41920196]
[1768897966388,8.94268767,129.96,129.92,4.41920196]
[1768897967573,16.63795508,129.95,129.92,4.41920196]
[1768897967760,20.96217499,129.95,129.92,0.1]
[1768897968796,12.01948732,129.95,129.92,0.1]
[1768897968996,8.94268767,129.93,129.91,0.1]
[1768897969287,4.32421991,129.94,129.9,0.1]
[1768897969463,13.26690758,129.94,129.9,0.1]
[1768897969892,7.69645193,129.93,129.9,0.1]
[1768897970273,7.69645193,129.93,129.9,4.41920196]
[1768897970787,7.69606631,129.94,129.9,4.41920196]
[1768897971580,7.69606631,129.94,129.91,4.31920196]
[1768897972189,16.63875398,129.94,129.91,4.31920196]
[1768897973276,8.94268767,129.92,129.9,0.1]
[1768897974188,16.64006215,129.92,129.9,0.1]
[1768897974587,16.64006215,129.92,129.88,4.42391431]
[1768897974794,8.94268767,129.9,129.88,4.42391431]
[1768897975571,8.94268767,129.91,129.88,4.42391431]
[1768897976185,7.6982294,129.9,129.88,4.42391431]
[1768897979179,8.95320459,129.91,129.88,4.42391431]
[1768897979383,13.28441986,129.92,129.88,4.42391431]
[1768897980281,19.24039637,129.94,129.88,4.42391431]
[1768897980484,8.95320459,129.93,129.88,4.42391431]
[1768897980683,16.65003933,129.93,129.88,4.42391431]
[1768897980890,8.95320459,129.9,129.85,4.42391431]
[1768897981382,16.65186654,129.9,129.85,4.42391431]
[1768897981584,7.69866195,129.9,129.86,4.42391431]
[1768897981894,16.65186654,129.9,129.86,4.42391431]
[1768897983279,4.33121527,129.93,129.86,4.42391431]
[1768897983471,8.95320459,129.92,129.87,4.42391431]
[1768897983997,8.95320459,129.93,129.88,4.42391431]
[1768897984583,12.02707489,129.94,129.88,4.42391431]
[1768897984781,8.95320459,129.93,129.88,4.42391431]
[1768897985396,12.02707489,129.94,129.88,4.42391431]
[1768897985715,8.95320459,129.93,129.89,4.42391431]
[1768897986384,121.33897142,129.95,129.89,4.42391431]
[1768897986385,20.97993891,129.95,129.89,4.42391431]
[1768897986785,8.95320459,129.94,129.89,4.42391431]
[1768897986988,12.02673432,129.95,129.89,3.64436361]
[1768897987294,19.23726107,129.96,129.92,4.42391431]
[1768897987295,7.69496598,129.96,129.92,4.42391431]
[1768897987517,11.33932959,129.96,129.92,4.42391431]
[1768897988384,7.69496598,129.96,129.92,4.42391431]
[1768897988586,7.69407255,129.98,129.93,4.42391431]
[1768897988781,3.64436361,129.98,129.93,4.42391431]
[1768897989378,12.02434266,129.99,129.93,4.42391431]
[1768897989581,3.64436361,129.97,129.94,4.42391431]
[1768897989893,3.64436361,129.95,129.91,4.42391431]
[1768897990226,3.64436361,129.94,129.91,4.42391431]
[1768897991009,7.97557888,129.92,129.88,4.42391431]
[1768897991502,11.34208927,129.91,129.88,4.42391431]
[1768897991715,4.33121527,129.9,129.83,5.9565132]
[1768897991930,7.69772566,129.91,129.78,4.42391431]
[1768897991931,4.24502407,129.83,129.78,4.42391431]
[1768897992088,4.24502407,129.82,129.77,4.52391431]
[1768897992508,3.64436361,129.8,129.77,4.52391431]
[1768897992700,3.64436361,129.79,129.77,0.1]
[1768897992912,8.97060099,129.79,129.75,4.42391431]
[1768897993091,8.97060099,129.78,129.75,4.42391431]
[1768897993423,8.97060099,129.76,129.72,4.42391431]
[1768897993626,8.97060099,129.75,129.72,4.42391431]
[1768897993787,8.97060099,129.75,129.69,4.42391431]
[1768897993788,4.24502407,129.75,129.69,4.42391431]
[1768897993992,8.97060099,129.74,129.69,4.42391431]
[1768897994389,8.97060099,129.73,129.69,4.42391431]
[1768897994589,8.97060099,129.73,129.63,4.42391431]
[1768897994590,13.21562506,129.7,129.63,4.42391431]
[1768897994784,8.97060099,129.69,129.63,4.42391431]
[1768897994986,13.21562506,129.7,129.64,4.42391431]
[1768897995190,5.34408856,129.73,129.58,0.4040959]
[1768897995500,4.24502407,129.67,129.61,4.42391431]
[1768897995802,13.21562506,129.68,129.62,4.42391431]
[1768897996028,13.21562506,129.67,129.62,4.42391431]
[1768897996313,13.21562506,129.63,129.58,0.4040959]
[1768897996495,4.24502407,129.63,129.58,0.4040959]
[1768897997101,13.21562506,129.63,129.58,0.4040959]
[1768897997704,4.24502407,129.63,129.58,4.82801021]
[1768897998021,16.68307978,129.66,129.6,4.42391431]
[1768897998231,5.34408856,129.69,129.6,4.42391431]
[1768897998232,4.24502407,129.69,129.6,4.42391431]
[1768897998527,8.97060099,129.66,129.61,4.42391431]
[1768897998910,31.2345367,129.68,129.61,4.42391431]
[1768897999108,8.97060099,129.67,129.61,4.42391431]
[1768897999627,4.24502407,129.64,129.59,4.42391431]
[1768897999807,16.68367464,129.65,129.59,4.42391431]
[1768898000007,7.71260344,129.66,129.61,4.42391431]
[1768898000209,13.21562506,129.68,129.62,8.97060099]
[1768898000457,23.52042343,129.7,129.64,4.42391431]
[1768898000613,7.71021629,129.7,129.65,4.42391431]
[1768898000804,16.68019784,129.71,129.66,4.42391431]
[1768898001003,7.70959685,129.71,129.66,13.3945153]
[1768898001202,7.70959685,129.71,129.67,4.42391431]
[1768898001529,23.51703392,129.73,129.67,4.42391431]
[1768898001530,16.67905534,129.73,129.67,4.42391431]
[1768898001825,8.97060099,129.71,129.67,4.42391431]
[1768898002122,4.24502407,129.71,129.65,4.42391431]
[1768898002324,26.97924753,129.73,129.63,4.42391431]
[1768898002325,4.24502407,129.69,129.63,4.42391431]
[1768898002517,4.24502407,129.69,129.63,13.3945153]
[1768898002826,13.21562506,129.71,129.65,4.42391431]
[1768898003028,4.24502407,129.71,129.65,4.42391431]
[1768898003222,13.21562506,129.71,129.65,4.42391431]
[1768898003426,8.97060099,129.71,129.66,4.17042122]
[1768898003624,11.92700868,129.72,129.66,4.17042122]
[1768898003823,20.89760967,129.72,129.67,4.17042122]
[1768898004024,11.92700868,129.72,129.67,4.17042122]
[1768898004327,8.97060099,129.71,129.67,4.17042122]
[1768898004623,11.92700868,129.72,129.67,4.17042122]
[1768898005023,4.21767087,129.72,129.67,4.17042122]
[1768898005224,9.56175943,129.74,129.67,4.17042122]
[1768898005433,16.67908326,129.73,129.68,4.17042122]
[1768898005613,7.70848227,129.73,129.68,4.17042122]
[1768898005815,7.70770108,129.75,129.7,4.17042122]
[1768898006018,7.70770108,129.75,129.7,13.14102221]
[1768898006220,11.92435771,129.76,129.71,4.17042122]
[1768898006425,7.70594969,129.77,129.72,4.17042122]
[1768898007326,8.97060099,129.79,129.73,4.17042122]
[1768898007532,20.89245515,129.8,129.74,4.17042122]
[1768898007911,11.92185416,129.8,129.75,4.17042122]
[1768898008215,20.89245515,129.8,129.75,4.17042122]
[1768898008420,8.97060099,129.78,129.73,4.17042122]
[1768898008729,4.21767087,129.78,129.73,4.17042122]
[1768898009717,11.92316045,129.78,129.73,4.17042122]
[1768898010952,4.21767087,129.76,129.71,4.17042122]
[1768898011249,4.21767087,129.76,129.61,76.66974234]
[1768898011250,13.18827186,129.74,129.67,4.17042122]
[1768898011414,8.97060099,129.74,129.68,4.17042122]
[1768898012051,7.70786289,129.74,129.69,4.17042122]
[1768898012356,8.97060099,129.73,129.69,4.17042122]
[1768898012637,8.97060099,129.71,129.65,4.17042122]
[1768898013324,8.97060099,129.71,129.66,4.17042122]
[1768898013633,4.21767087,129.73,129.67,4.17042122]
[1768898013830,16.68025264,129.71,129.67,4.17042122]
[1768898014135,16.68025264,129.71,129.64,16.68408051]
[1768898014136,8.97060099,129.7,129.65,4.17042122]
[1768898014645,8.97060099,129.69,129.65,4.17042122]
[1768898014934,8.97060099,129.68,129.63,4.17042122]
[1768898015128,8.97060099,129.67,129.63,4.17042122]
[1768898015311,8.97060099,129.67,129.6,7.7159821]
[1768898015312,13.18827186,129.66,129.59,20.85746075]
[1768898015511,13.18827186,129.65,129.59,4.17042122]
[1768898015738,8.97060099,129.65,129.59,4.17042122]
[1768898016045,8.97060099,129.65,129.6,4.17042122]
[1768898016346,20.90109659,129.66,129.6,4.17042122]
[1768898017638,11.9304956,129.66,129.6,4.17042122]
[1768898017844,20.90109659,129.66,129.6,4.17042122]
[1768898018835,8.97060099,129.65,129.6,4.17042122]
[1768898019326,11.9304956,129.66,129.6,4.17042122]
[1768898019528,8.97060099,129.65,129.6,4.17042122]
[1768898020027,13.18827186,129.64,129.58,4.57451712]
[1768898020234,7.71323694,129.65,129.59,4.17042122]
[1768898020459,16.68383793,129.65,129.59,4.17042122]
[1768898021047,7.71266537,129.66,129.61,4.17042122]
[1768898021234,20.89975433,129.68,129.62,4.17042122]
[1768898021629,20.89975433,129.68,129.63,4.17042122]
[1768898022024,20.89886229,129.7,129.64,4.17042122]
[1768898022425,11.9282613,129.7,129.64,4.17042122]
[1768898022650,20.89886229,129.7,129.64,4.17042122]
[1768898022825,11.9282613,129.7,129.64,4.17042122]
[1768898023024,20.89886229,129.7,129.64,4.17042122]
[1768898023621,11.9282613,129.7,129.64,4.17042122]
[1768898024036,8.97060099,129.69,129.64,4.17042122]
[1768898024535,7.71059043,129.7,129.64,4.17042122]
[1768898024734,16.68119142,129.7,129.65,4.30711682]
[1768898025139,4.24502407,129.69,129.6,4.30711682]
[1768898025340,13.21562506,129.64,129.58,4.71121272]
[1768898025644,8.97060099,129.65,129.6,4.30711682]
[1768898025823,16.68426961,129.64,129.6,4.30711682]
[1768898026244,20.92891282,129.65,129.6,4.30711682]
[1768898027027,11.95831183,129.65,129.6,4.30711682]
[1768898027232,13.23342049,129.66,129.55,5.9565132]
[1768898027531,13.23342049,129.64,129.58,8.97060099]
[1768898027731,20.94737004,129.64,129.58,8.97060099]
[1768898027936,13.23342049,129.63,129.57,8.97060099]
[1768898028134,13.23342049,129.62,129.56,8.97060099]
[1768898028334,5.34408856,129.65,129.57,4.30711682]
[1768898028632,8.97060099,129.64,129.59,4.30711682]
[1768898029342,8.97060099,129.63,129.59,4.30711682]
[1768898030725,11.97615264,129.65,129.59,4.30711682]
[1768898031450,4.2628195,129.67,129.6,4.30711682]
[1768898031820,4.2628195,129.66,129.6,4.30711682]
[1768898032024,4.2628195,129.66,129.61,4.30711682]
[1768898032639,16.68270365,129.67,129.61,4.30711682]
[1768898032841,7.71210266,129.67,129.61,4.30711682]
[1768898033025,8.97060099,129.66,129.61,4.30711682]
[1768898033225,12.00098108,129.67,129.61,4.30711682]
[1768898033438,8.97060099,129.66,129.61,4.30711682]
[1768898033634,13.25947941,129.66,129.61,4.30711682]
[1768898033841,4.28887842,129.66,129.61,4.30711682]
[1768898034038,13.25947941,129.66,129.61,4.30711682]
[1768898034223,13.25947941,129.64,129.59,4.39801991]
[1768898034442,8.97060099,129.63,129.59,4.39801991]
[1768898035154,13.25947941,129.61,129.55,4.39801991]
[1768898035337,13.25947941,129.61,129.56,4.39801991]
[1768898036248,4.28887842,129.65,129.58,4.39801991]
[1768898036563,8.97060099,129.63,129.58,4.39801991]
[1768898036731,13.25947941,129.63,129.58,4.39801991]
[1768898037054,8.97060099,129.62,129.58,4.39801991]
[1768898037353,12.00366185,129.63,129.58,4.39801991]
[1768898037535,8.97060099,129.62,129.58,4.39801991]
[1768898037732,20.97426284,129.63,129.58,4.39801991]
[1768898038054,8.97060099,129.62,129.58,4.39801991]
[1768898038241,20.97426284,129.63,129.58,4.39801991]
[1768898039051,20.99570635,129.63,129.58,4.39801991]
[1768898040652,19.28006768,129.67,129.6,4.39801991]
[1768898040841,16.70452329,129.66,129.61,4.39801991]
[1768898041029,7.71247879,129.66,129.61,4.39801991]
[1768898041225,16.70452329,129.66,129.61,4.39801991]
[1768898041855,16.70452329,129.66,129.54,43.94081596]
[1768898041856,8.9920445,129.62,129.51,6.35367307]
[1768898042056,52.4804686,129.67,129.51,1e-08]
[1768898042273,8.9920445,129.54,129.51,1e-08]
[1768898042433,8.9920445,129.52,129.45,0.1]
[1768898042761,8.9920445,129.48,129.45,1e-08]
[1768898042937,16.7154699,129.48,129.45,1e-08]
[1768898043147,36.02347113,129.48,129.45,1e-08]
[1768898043658,7.7644793,129.51,129.45,4.39801992]
[1768898043865,0.04288878,129.53,129.45,4.39801992]
[1768898044152,8.9920445,129.53,129.46,4.39801991]
[1768898044355,7.71962328,129.54,129.48,4.39801991]
[1768898044528,0.04288878,129.57,129.51,4.39801991]
[1768898044529,7.71783591,129.57,129.51,4.39801991]
[1768898044734,7.71783591,129.57,129.53,4.39801991]
[1768898044936,19.29325442,129.58,129.53,4.39801991]
[1768898045246,7.7166448,129.59,129.54,4.39801991]
[1768898045835,7.7166448,129.59,129.56,4.39801991]
[1768898046035,7.7160133,129.61,129.56,4.39801991]
[1768898046235,8.9920445,129.57,129.4,4.39801991]
[1768898046533,8.9920445,129.44,129.38,4.39801991]
[1768898046852,5.34408856,129.49,129.38,4.39801991]
[1768898046853,16.71747718,129.45,129.38,4.39801991]
[1768898047048,7.72543268,129.45,129.41,0.1]
[1768898047252,7.72429428,129.47,129.41,4.49801991]
[1768898047453,27.03378682,129.47,129.41,4.49801991]
[1768898047652,5.34408856,129.52,129.43,4.39801991]
[1768898047959,8.9920445,129.48,129.43,4.39801991]
[1768898048142,8.9920445,129.5,129.44,4.39801991]
[1768898048660,8.9920445,129.49,129.44,4.39801991]
[1768898049268,7.72320049,129.48,129.44,4.39801991]
[1768898050165,7.72156052,129.51,129.45,4.39801991]
[1768898050348,7.72156052,129.51,129.45,8.9920445]